Cogmind - Beta 13 @@@ ROGUE MODE // 2024.07.29 @ 20:47:26 Player: CONM Result: Destroyed by LX-48F(R) with Subdweller Machine Gun Performance ------------- Evolutions (0) 0 Regions Visited (2) 400 Robots Destroyed (13) 65 Value Destroyed (331) 331 Prototype IDs (0) 0 Alien Tech Used (0) 0 Bonus (0) 0 TOTAL SCORE: 796 Bonus ------- None Cogmind --------- Core Integrity 0/250 Matter 266/300 Energy 250/250 System Corruption 0% Temperature Cool (0) Movement Rolling (140) Ox4 Location -10/Subcaves Parts ------- > --- POWER (1) -------- Ion Engine > --- PROPULSION (2) --- Wheel > --- UTILITY (2) ------ Large Storage Unit Makeshift Kinetic Plating > --- WEAPON (2) ------- Subdweller Machine Gun Slug Cannon > --- INVENTORY (15) --- Light Treads Wheel Compact Wheel Compact Wheel Disposable Heat Sink Small Storage Unit Large Storage Unit Improved Terrain Scanner Seismic Detector Light Armor Plating Light Armor Plating Subdweller Laser Assault Rifle Barrage Gun Peak State ------------ > --- POWER ------------ Subdweller Power Source > --- PROPULSION ------- Light Treads > --- UTILITY ---------- Large Storage Unit Makeshift Kinetic Plating > --- WEAPON ----------- Subdweller Machine Gun Slug Cannon > --- INVENTORY -------- Ion Engine Wheel Wheel Compact Wheel Compact Wheel Disposable Heat Sink Small Storage Unit Large Storage Unit Improved Terrain Scanner Seismic Detector Light Armor Plating Light Armor Plating Subdweller Laser Assault Rifle Barrage Gun [Rating: 16] Favorites ----------- Power Ion Engine Engine Ion Engine Propulsion Light Treads Treads Light Treads Wheel Wheel Utility Large Storage Unit Device Seismic Detector Storage Large Storage Unit Protection Makeshift Kinetic Plating Weapon Assault Rifle Ballistic Gun Assault Rifle Ballistic Cannon Slug Cannon Build | -11 -10 -10 ------- Run | Yrd Mat Sub Slots Evolved . | . . . Power . | . . . Propulsion . | . . . Utility . | . . . Weapon . | . . . Parts Attached 17 | 7 1 9 Power 3 | 1 . 2 Engine 3 | 1 . 2 Core . | . . . Reactor . | . . . Propulsion 3 | 2 . 1 Treads 2 | 2 . . Leg . | . . . Wheel 1 | . . 1 Hover . | . . . Flight . | . . . Utility 5 | 2 1 2 Device 1 | 1 . . Storage 2 | 1 1 . Processor . | . . . Hackware . | . . . Protection 2 | . . 2 Artifact . | . . . Weapon 6 | 2 . 4 Energy Gun . | . . . Energy Cannon . | . . . Ballistic Gun 5 | 2 . 3 Ballistic Cannon 1 | . . 1 Launcher . | . . . Special Weapon . | . . . Impact Weapon . | . . . Slashing Weapon . | . . . Piercing Weapon . | . . . Special Melee Weapon . | . . . Unidentified Prototypes . | . . . Parts Lost 4 | . . 4 Power 1 | . . 1 Propulsion 1 | . . 1 Utility 1 | . . 1 Weapon 1 | . . 1 Highest Loss Streak 2 | . . 2 To Critical Strikes 1 | . . 1 Average Slot Usage (%) 96 | . 100 95 Engine 13 | . 14 13 Treads 24 | . 28 23 Wheel 1 | . . 1 Device 4 | . 14 3 Storage 14 | . 14 14 Protection 7 | . . 8 Ballistic Gun 25 | . 28 25 Ballistic Cannon 1 | . . 2 Naked Turns . | . . . Heaviest Build 43 | 15 30 43 Greatest Support 40 | 40 40 40 Greatest Overweight (x) 4 | 3 . 4 Average Overweight (x) . | . . . Largest Inventory Capacity 15 | 8 15 15 Average Capacity 13 | 7 9 15 Most Carried 15 | 7 12 15 Average Carried 11 | 4 7 13 Final Capacity 15 | 8 15 15 Final Carried 14 | 7 12 14 Class Distribution -------------------- 100% | Mutant Dominant Class ---------------- Mutant | -10/Materials Mutant | -10/Subcaves Resources | -11 -10 -10 ----------- Run | Yrd Mat Sub Matter Collected 548 | 279 . 269 Remotely . | . . . Salvage Created 401 | 62 . 339 Parts 35 | 10 . 25 Haulers Intercepted . | . . . Recyclers Shooed . | . . . Parts Field Recycled . | . . . Retrieved Matter . | . . . Parts Self-Destructed 13 | . . 13 Prevented . | . . . Kills | -11 -10 -10 ------- Run | Yrd Mat Sub Combat Hostiles Destroyed 10 | . . 10 Guns 10 | . . 10 Classes Destroyed 3 | 1 . 2 Tunneler 3 | 3 . . Swarmer 3 | . . 3 Subdweller 7 | . . 7 Best Kill Streak 3 | 2 . 3 Combat Bots Only 3 | . . 3 Max Kills in Single Turn 2 | 2 . 1 Gunslinging . | . . . Exploded . | . . . Melee . | . . . Uniques/NPCs Destroyed . | . . . Combat | -11 -10 -10 -------- Run | Yrd Mat Sub Hostile Shots Fired 83 | . . 83 Missed 23 | . . 23 Damage Taken 1063 | . . 1063 Core 261 | . . 261 Absorbed by Shields . | . . . Ignored by Resistances 22 | . . 22 Core Remaining (%) 100 | 100 . . Volleys Fired 47 | 2 2 43 Largest 2 | 2 2 2 Hottest 78 | 40 40 78 Shots Fired 84 | 4 4 76 Gun 77 | 4 4 69 Cannon 7 | . . 7 Launcher . | . . . Special . | . . . Kinetic 84 | 4 4 76 Thermal . | . . . Explosive . | . . . Electromagnetic . | . . . Robot Hit Streak 13 | 2 1 13 Robot Miss Streak 3 | . 2 3 Penetration Max . | . . . Secondary Targets . | . . . Shots Hit Robots 57 | 2 1 54 Core Hits 22 | 3 . 19 Critical Kills . | . . . Critical Parts Destroyed . | . . . Critical Strikes . | . . . Melee Attacks . | . . . Impact . | . . . Slashing . | . . . Piercing . | . . . Sneak Attacks . | . . . Combat Hostiles . | . . . Follow-up Attacks . | . . . Damage Inflicted 718 | 34 15 669 Guns 677 | 34 15 628 Cannons 41 | . . 41 Explosions . | . . . Melee . | . . . Ramming . | . . . Kinetic 718 | 34 15 669 Thermal . | . . . Explosive . | . . . Electromagnetic . | . . . Impact . | . . . Slashing . | . . . Piercing . | . . . Highest Corruption . | . . . Average Corruption . | . . . Corruption Purged . | . . . Corruption Blocked . | . . . Overload Shots . | . . . Overflow Damage . | . . . Projectiles . | . . . Explosions . | . . . Melee . | . . . Knockbacks . | . . . Impact . | . . . Kinetic . | . . . Secondary . | . . . Self-Inflicted Damage . | . . . Shots . | . . . Rammed . | . . . Targets Rammed . | . . . Kicked . | . . . Crushed . | . . . Highest Temperature . | . . . Average Temperature . | . . . Received Heat Transfer 84 | . . 84 Siege Activations . | . . . Robots Corrupted . | . . . Combat Hostiles . | . . . Parts Fried . | . . . Impact Corruptions . | . . . Robots Melted . | . . . Combat Hostiles . | . . . Parts Melted . | . . . Heat Transferred . | . . . Parts Sabotaged . | . . . Parts Stolen . | . . . Parts Stripped . | . . . Power Chain Reactions . | . . . Alert | -11 -10 -10 ------- Run | Yrd Mat Sub Peak Influence 24 | 15 24 . Initial 9 | . 9 . Average 13 | 7 20 . Maximum Alert Level . | . . . Low Security (%) 100 | 100 100 . Level 1 . | . . . Level 2 . | . . . Level 3 . | . . . Level 4 . | . . . Level 5 . | . . . High Security . | . . . Max Security . | . . . Squads Dispatched . | . . . Investigation . | . . . Extermination . | . . . Reinforcement . | . . . Assault . | . . . Garrison . | . . . Intercept . | . . . Searches Triggered . | . . . Construction Impeded . | . . . Haulers Reinforced . | . . . Active Scanning Responses . | . . . Cargo Convoy Interrupts . | . . . Stealth | -11 -10 -10 --------- Run | Yrd Mat Sub Distress Signals . | . . . Communications Jammed . | . . . Distress Signals . | . . . Times Spotted 16 | . 3 13 Peak Tracking Total 6 | . 3 6 Tactical Retreats 1 | . . 1 Traps | -11 -10 -10 ------- Run | Yrd Mat Sub Traps Triggered . | . . . Indirectly . | . . . Trap Hack Attempts . | . . . Triggered . | . . . Disarmed . | . . . Reprogrammed . | . . . Reused . | . . . Traps Extracted . | . . . Installed . | . . . Triggered . | . . . Machines | -11 -10 -10 ---------- Run | Yrd Mat Sub Machines Disabled . | . . . Max in Single Turn . | . . . Machines Repaired . | . . . Machines Dismantled . | . . . Machines Sabotaged . | . . . Overloaded Fab Kills . | . . . Hacking | -11 -10 -10 --------- Run | Yrd Mat Sub Machines Accessed 2 | . 2 . Terminals 2 | . 2 . Fabricators . | . . . Repair Stations . | . . . Recycling Units . | . . . Scanalyzers . | . . . Garrison Access . | . . . Total Hacks 5 | . 5 . Successful 3 | . 3 . Failed 2 | . 2 . Catastrophic . | . . . Database Lockouts . | . . . Manual 5 | . 5 . Terminals 5 | . 5 . Fabricators . | . . . Repair Stations . | . . . Recycling Units . | . . . Scanalyzers . | . . . Garrison Access . | . . . Terminal Hacks . | . . . Fabricator Hacks . | . . . Repair Station Hacks . | . . . Recycling Unit Hacks . | . . . Scanalyzer . | . . . Garrison Access Hacks . | . . . Unauthorized Hacks 3 | . 3 . Terminals 3 | . 3 . Assimilate 2 | . 2 . Botnet 1 | . 1 . Fabricators . | . . . Repair Stations . | . . . Recycling Units . | . . . Scanalyzers . | . . . Garrison Access . | . . . Data Cores Recovered . | . . . Used . | . . . Hacking Detections 2 | . 2 . Full Trace Events . | . . . Feedback Events . | . . . Feedback Blocked . | . . . Robot Schematics Acquired . | . . . Robots Built . | . . . Authchips . | . . . Time . | . . . Total Robot Build Rating . | . . . Part Schematics Acquired . | . . . Parts Built . | . . . Authchips . | . . . Time . | . . . Total Part Build Rating . | . . . Parts Repaired . | . . . Time . | . . . Parts Recycled . | . . . Recycled Matter . | . . . Retrieved Matter . | . . . Retrieved Components . | . . . Parts Scanalyzed . | . . . Part Schematics Acquired . | . . . Parts Damaged . | . . . Bothacking | -11 -10 -10 ------------ Run | Yrd Mat Sub Used RIF Installer . | . . . Robots Hacked . | . . . Non-combat . | . . . Combat . | . . . Robot Hacks Applied . | . . . Relay Couplers Released . | . . . Fabnet Peak Effective % . | . . . Robots Rewired . | . . . Allies Hacked . | . . . Hacks Repelled . | . . . Allies | -11 -10 -10 -------- Run | Yrd Mat Sub Total Allies 1 | . 1 . Largest Group 1 | . 1 1 Highest-Rated Group 10 | . 10 10 Highest-Rated Ally 10 | . 10 10 Total Orders . | . . . Ally Attacks . | . . . Total Damage . | . . . Kills . | . . . Allies Corrupted . | . . . Allies Melted . | . . . Intel | -11 -10 -10 ------- Run | Yrd Mat Sub Robot Analysis Total . | . . . Derelict Logs Recovered 1 | . . 1 Drone Launches . | . . . Drone Recoveries . | . . . Exploration | -11 -10 -10 ------------- Run | Yrd Mat Sub Turns Passed 1175 | 156 148 871 Spaces Moved 640 | 86 86 468 Core 10 | 10 . . Treads 554 | 76 86 392 Legs . | . . . Wheels 76 | . . 76 Hover . | . . . Flight . | . . . Fastest Speed 50 | 50 160 140 Average Speed 156 | 153 160 156 Slowest Speed 200 | 200 160 160 Overloaded Moves . | . . . Propulsion Burnouts . | . . . Robots Hopped . | . . . Cave-ins Triggered . | . . . Exploration Rate (%) 22 | 6 24 36 Regions Visited 2 Branch Regions 1 Pre-discovered Areas 1 | . . 1 Known Exits Taken . | . . . Unknown Exits Taken 2 | 1 1 . Scrap Searched 2 | . . 2 Spaces Dug . | . . . Terrain Destroyed 3 | . . 3 Melee . | . . . Projectile 3 | . . 3 AOE . | . . . Terrain Rammed . | . . . Walls Destroyed . | . . . Machines Disabled . | . . . Actions | -11 -10 -10 --------- Run | Yrd Mat Sub Total 724 | 103 92 529 Wait 3 | 2 . 1 Move 638 | 85 85 468 Hop . | . . . Pick Up 16 | 7 4 5 Fast Attach 9 | 7 . 2 Attach 1 | . . 1 Detach . | . . . Swap 7 | . 1 6 Drop 3 | . . 3 Fire 47 | 2 2 43 Melee . | . . . Ram . | . . . Kick . | . . . Crush . | . . . Escape Stasis . | . . . Rewire . | . . . Trap . | . . . Miscellaneous . | . . . Route ------- -11/Scrapyard -10/Materials -10/Subcaves (discovered 1 exit: [*Mat]) History --------- Turn | Location | Event 26 | -11/Scrapyard | Discovered new exit (range 16) 157 | -11/Scrapyard | Entered Materials 280 | -10/Materials | Discovered new exit (range 4) 305 | -10/Materials | Entered Subcaves 305 | -10/Subcaves | Accompanied by 1 ally 306 | -10/Subcaves | Build established: Mutant 519 | -10/Subcaves | Core integrity fell below 50% 674 | -10/Subcaves | Discovered new exit (range 12) 675 | -10/Subcaves | Shifting Twisted Machinery released Mak. Kinetic Plating 679 | -10/Subcaves | Shifting Twisted Machinery released Sub. Machine Gun 722 | -10/Subcaves | A swath of the cavern ceiling suddenly collapsed 864 | -10/Subcaves | Core integrity fell below 20% 1176 | -10/Subcaves | Destroyed by LX-48F(R) with Subdweller Machine Gun Last Messages --------------- 00906_ Acquired 14 matter. 00908_ Searching scrap... 00908_ Found Flamer. 00908_ Found Barrage Gun. 00908_ Found 33 Matter. 00909_ Acquired 15 matter. 00916_ Dropped Broken Sub. Machine Gun. 00916_ Acquired Slug Cannon. 00919_ Dropped Lgt. Assault Rifle. 00919_ Acquired Barrage Gun. 00938_ Sub. Power Source shoots sparks and powers down. 00980_ Acquired derelict log, extracted data. World map updated: -9/Materials. 01042_ Critical hit (Destroy). 01042_ Lgt. Treads destroyed. 01048_ RO-VFQ(R) destroyed. 01054_ Dropped Broken Sub. Power Source. 01061_ XY-MIH(R) destroyed. 01085_ Acquired 52 matter. 01112_ Slug penetrates Twisted Machinery. Map ----- +----------------------------------------------------+ | #### #????????????????????????????????? | | ### #????????????????????????????????? | | !! ##????????????????????????????????? | | "! %& ## #?????????????????????????????????? | | % " * ##?? #????????????????????????????????? | | ""### ##????? ???????????????????????????????? | | "##?# ######??? #??????????????????????????????? | | ##??# ## ##??????????????????????????????????? | | #??##%!### #??????????????????????????????????? | | "### & ### #??????????????????????????????????? | | * ## #???????????????????????????????????? | | ##?###?????####?????????????????????? | | " ### ##???## ###???????????????????? | | " % ## #???# #???????????????????? | | "### ## ##### #????????????????????? | | #??# #?????????????????????? | | ???#"" ## #####??????????????????? | | ?###"" ## ## #??????????????????? | | ?#"""" ## #### ## ##?????????????????? | | ?##""" ## ##??## ##????????????????? | | ??#### ## #????## #????????????????? | | ?????## ###### #?????## #????????????????? | | ??????## ####?###?????## ##????????????????? | | ???????# #????###### #?????????????????? | | ???????# #????# #?????????????????? | | ???????# ####?## @## #?????????????????? | | ???????# ##?### ### ##?????????????????? | | ???????# #???# ##?##??????????????????? | | ???????# #??## #?????????????????????? | | ???????#"""" #??# #####?????????????????? | | ??????##"""" ##?## ##?##?????????????? | | ??????# """" #####??# ## #?????????????? | | ??????##" "" #??????# #?????????????? | | ?""????#" ##??????# #?????????????? | | ?"""???#" ###???????# #?????????????? | | #"""####" #??????### #?????????????? | | """""""" #??????# #?????????????? | | #"""" "" ##??????## ### #?????????????? | | #""""" " #??####??# #?## ##?????????????? | | ""## ######## #### #?# ###??????????????? | | # "#" #??#" #?# #???????????###??# | | # #??#"" ##?# ##??????????## #### | | ##?## ##??# #???????????# | | #??#### #???# ############# | | # #???#### #???## # # # # # | | ##?## ## #???# | | ### ##???## ## | | ## ## ###????# # ## ## | | ?## ### ##??????############### #### | | ??## #?# ##?????????????????????# ##?# | +----------------------------------------------------+ Best States ------------- Heat Dissipation 25 Energy Generation 15 Energy Capacity 250 Matter Stores 300 Matter Capacity 300 Sight Range 16 Terrain Scan Density 10 Armor Coverage 150 Resistance: KI 10 Evasion (%) 40 Recoil Reduction 2 Item Schematics ----------------- None Robot Schematics ------------------ None Fabricated ------------ Nothing Alien Tech Used ----------------- None Achievements -------------- None Challenges ------------ None Game ------ Seed TrapDamperDatajack Manual? 0 Play Time 00:16:46 Cumulative 50.5 hours Start 2024.07.29 @ 20:19:33 End 2024.07.29 @ 20:47:26 Sessions 1 Manual Loads 0 Difficulty Rogue Special Mode None Game No. 74 Rogue 74 Adventurer 0 Explorer 0 Win Type - Total 0 Types 0/0/0/0/0/0/0/0/0 Lore% 27 Gallery% 32 Achievement% 34 Wizard Run 0 Options --------- Layout 0 ASCII 0 Keyboard 0 Movement Arrows Keybinds 0 Fullscreen 2 Font 18/SmallcapsGlow Map View 76x50 Zoom Use 0% Tactical HUD 1 Map Filters NONE Filters NONE Steam 1 RUN: e2e62211-ac27-4608-9599-926a8fc4ff73